Workbook

Sheet QuickBooks Desktop Export Tips

Sheet Sheet1
C2: PREVIOUS YEAR | D2: Jul '20 - May 21 | G2: Projected 2021/22
A3: Income
B4: EF
C5: 4620 · Sewer Income | D5: 72995.68 | G5: 70000
C6: 4620.1 · Trash Income | D6: 54293.83 | G6: 50000
C7: 4620.2 · Water Income | D7: 72336.5 | G7: 70000
C8: 4870 · Discounts and Fees | D8: 0 | G8: 0
C9: 4870.4 · Misc. Enterprise Income | D9: 0 | G9: 0
B10: Total EF | D10: =ROUND(SUM(D4:D9),5) -> 199626.01 | G10: =SUM(G5:G9) -> 190000
B11: GENERAL FUND
C12: 4010 · Current Secured Taxes | D12: 85307.04 | G12: 85000
C13: 4020 · Current unsecured Taxes | D13: 3224.02 | G13: 3200
C14: 4030 · Prior Secured Taxes | D14: 16702.13 | G14: 16000
C15: 4040 · Prior Unsecured Taxes | D15: 82.51 | G15: 100
C16: 4080 · Supplemental Taxes | D16: 496.92 | G16: 100
C17: 4451 · HOPTR | D17: 916.39 | G17: 1000
C18: 4890.3 · Other GF Income
B19: Total GENERAL FUND | D19: =ROUND(SUM(D11:D18),5) -> 106729.01 | G19: =SUM(G12:G18) -> 105400
B20: GOV F
C21: 4060 · Current assessments-Fire | D21: 230450 | G21: 230000
C22: 4065 · Prior assessments- Fire | D22: 19967.5 | G22: 20000
C23: 4870.1 · Lot Mowing Income | D23: 62645 | G23: 62000
C24: 4870.2 · Pest Control Income | D24: 6109.77 | G24: 6000
C25: 4890.1 · Fire Assignment Income | D25: 716686.98 | F25: NEED TO BALANCE | G25: 330000
C26: 4890.2 · Fire Income - Other | D26: 0 | G26: 0
B27: Total GOV F | D27: =ROUND(SUM(D20:D26),5) -> 1035859.25 | G27: =SUM(G21:G26) -> 648000
B28: 4060.1 · Current assessments-CSD | D28: 80329.5 | G28: 80000
B29: 4060.2 · Current assessments-Refuse | D29: 18436 | G29: 18000
B30: 4065.1 · Prior assessments- CSD | D30: 11642.45 | G30: 11600
B31: 4065.2 · Prior assessments-Refuse | D31: 2026.55 | G31: 2000
B32: 4190 · Interest Income | D32: 19.74 | G32: 55
B33: 4890 · Cash Overages | D33: 16 | G33: 0
A34: Total Income | D34: =ROUND(D3+D10+D19+SUM(D27:D33),5) -> 1454684.51 | G34: =SUM(G28:G33) -> 111655
D35: =D34 -> 1454684.51 | F35: TOTAL INCOME | G35: =G10+G19+G27+G34 -> 1055055
A36: Expense
B37: BENEFITS
C38: 5020 · Retirement | D38: 62064.72 | G38: 63000
C39: 5035 · Workmans Comp | D39: -23496.9 | G39: 65000
B40: Total BENEFITS | D40: =ROUND(SUM(D37:D39),5) -> 38567.82 | G40: =SUM(G38:G39) -> 128000
B41: CAPITAL OUTLAY
C42: 5350 · Capital Expense - Land | D42: 0
C43: 5370 · Capital Expense - Equipment | D43: 104772.53 | G43: 30000
B44: Total CAPITAL OUTLAY | D44: =ROUND(SUM(D41:D43),5) -> 104772.53 | G44: =SUM(G42:G43) -> 30000
B45: OTHER CHARGES
C46: 5300 · Interest on Long-Term Debt | D46: 5503.44
C47: 5310 · Penalties | D47: 10367.3 | G47: 0
C48: 5340 · Assessment Collection Fees | G48: 0
C49: 5345 · Bad Debt | G49: 20000
B50: Total OTHER CHARGES | D50: =ROUND(SUM(D45:D49),5) -> 15870.74 | G50: =SUM(G47:G49) -> 20000
B51: PR
C52: 5010 · Directors Stipend | D52: 5900 | G52: 6000
C53: 5010.1 · Gross Wages | D53: 368052.87 | G53: 400000
C54: 5010.2 · Health Stipend | D54: 18000 | G54: 21000
C55: 5010.3 · sick pay | D55: 2472.32 | G55: 5000
C56: 5010.4 · Holiday pay | D56: 13997.35 | G56: 18000
C57: 5010.5 · vacation | D57: 4005.96 | G57: 6000
C58: 5010.6 · Contracted Fire Pay | D58: 274945.95 | G58: 150000
C59: 5010.7 · Employer PR taxes | D59: 32441.97 | G59: 35000
B60: Total PR | D60: =ROUND(SUM(D51:D59),5) -> 719816.42 | G60: =SUM(G52:G59) -> 641000
B61: SS
C62: 5050 · Uniforms | D62: 2314.77 | G62: 3000
C63: 5060 · Communications | D63: 22164.17 | G63: 16000
C64: 5080 · Meals | D64: 3729.25 | G64: 4000
C65: 5090 · Lake Station Expense | D65: 2220.59 | G65: 2000
C66: 5090.1 · Dump Fees | D66: 7962.5 | G66: 8800
C67: 5100 · Insurance Exp-liab | D67: 5205.33 | G67: 45000
C68: 5120 · R&M Equiptment | D68: 26943.3 | F68: $3300.00 month | G68: 35000
C69: 5130 · R&M - Facilities | D69: 13474.46 | F69: $2050.00 month | G69: 20000
C70: 5140 · Medical Equiptment | D70: 546.6 | G70: 600
C71: 5150 · Dues and Subscriptions | D71: 9271.16 | G71: 9000
C72: 5170 · Office Supplies | D72: 1381.76 | G72: 2000
C73: 5170.1 · Postage and Delivery | D73: 1317.34 | G73: 2000
C74: 5170.2 · Fees | D74: 1867.59 | G74: 1800
C75: 5180 · Professional Services | D75: 12259.15 | G75: 15000
C76: 5180.1 · Water Test Expense | D76: 1397.5 | G76: 1500
C77: 5180.4 · Physical & Drug Test Expense | D77: 642 | G77: 828
C78: 5180.5 · Contract Labor Expense | D78: 0
C79: 5180.6 · Permits & licencing | D79: 4955.62 | G79: 4500
C80: 5190 · Publications and Legal Notices | D80: 885.68 | G80: 1000
C81: 5200 · Lease Expense | D81: 1818.89 | G81: 3000
C82: 5220 · District Expense | D82: 718.32 | G82: 4500
C83: 5230 · District Special Expense | D83: 0
C84: 5231.1 · Safety Expense | D84: 4317.99 | G84: 6000
C85: 5250 · Training & Travel | D85: 699.3 | G85: 4000
C86: 5250.1 · Fuel | D86: 19179.96 | G86: 30000
C87: 5260 · Utilities | D87: 16611.66 | G87: 20000
C88: 5370.2 · Computer expense | D88: 3889.89 | G88: 4000
B89: Total SS | D89: =ROUND(SUM(D61:D88),5) -> 165774.78
B90: 5160.1 · Cash Shortages | D90: 0 | G90: 0
B91: 5160.2 · Bank Service Charges | D91: 89.64 | G91: 220
A92: Total Expense | B92: 5160.3 · Miscellaneous Expense | D92: 27.45
B93: 5160.4 · Collections (LM) | D93: 0
G94: =SUM(G62:G93) -> 243748
F95: TOTAL EXPENSE
A96: OFS | G96: =G40+G44+G50+G60+G94 -> 1062748
B97: 4460 · Airport CA Disbursement
B98: 4460.1 · State-Aid
B99: 4580 · Federal Aid | G99: 10000
G102: =SUM(G99:G101) -> 10000
F105: 2020/21 NET
G106: =G35-G96+G102 -> 2307
